bitfinex-derivatives/quotes_ETHF0:USTF0_20241228
["timestamp","ask_amount","ask_price","bid_price","bid_amount"]
[1735399792627,1.0582,3386.5,3386.3,0.29582]
[1735399793020,1.354,3386.5,3386.3,0.29582]
[1735399793422,0.29582,3386.4,3386.1,41.09583]
[1735399793621,0.29582,3386.4,3386.2,0.29582]
[1735399794227,1.35401,3386.5,3386.2,0.29582]
[1735399794924,1.35401,3386.5,3386.1,40.8]
[1735399795120,1.35401,3386.5,3386.3,0.29582]
[1735399795426,4.3172,3386.7,3386.1,40.8]
[1735399795619,1.0178,3386.6,3386.4,0.2958]
[1735399795815,1.0178,3386.6,3386.1,40.8]
[1735399796020,1.0178,3386.6,3386.4,0.2958]
[1735399796326,1.0178,3386.6,3386.5,0.2958]
[1735399799026,1.31359,3386.6,3386.5,0.2958]
[1735399799420,1.0178,3386.6,3386.1,40.8]
[1735399799615,1.0178,3386.6,3386.2,0.29582]
[1735399799826,0.29582,3386.4,3386.2,0.29582]
[1735399800029,1.0178,3386.6,3385.9,3.2078]
[1735399800030,0.29585,3386.0,3385.9,3.2078]
[1735399801026,1.0888,3386.2,3385.9,3.2078]
[1735399801230,1.0888,3386.2,3386.1,0.29584]
[1735399802027,1.0178,3386.6,3386.5,0.2958]
[1735399802528,1.0178,3386.6,3386.5,41.0958]
[1735399803021,1.31359,3386.6,3386.5,40.8]
[1735399803220,0.29584,3386.2,3386.0,0.29584]
[1735399803429,1.31254,3386.1,3386.0,0.29584]
[1735399803622,1.31254,3386.1,3386.0,41.09584]
[1735399803823,1.31254,3386.1,3386.0,40.8]
[1735399804022,4.52034,3386.1,3386.0,40.8]
[1735399804224,4.2245,3386.1,3385.8,0.29586]
[1735399804425,1.0719,3386.0,3385.9,0.29585]
[1735399804822,1.36775,3386.0,3385.9,0.29585]
[1735399805022,1.0719,3386.0,3385.5,40.8]
[1735399805224,1.0961,3385.9,3385.5,40.8]
[1735399805428,1.0961,3385.9,3385.6,0.29588]
[1735399805728,1.0961,3385.9,3385.5,41.09589]
[1735399805729,0.29588,3385.6,3385.5,41.09589]
[1735399806327,1.0961,3385.9,3385.5,40.8]
[1735399806729,1.0961,3385.9,3385.8,0.29586]
[1735399807240,5.87000842,3386.7,3386.6,0.29579]
[1735399807241,6.95765455,3386.7,3386.6,0.29579]
[1735399808232,3.50358,3386.7,3386.6,0.29579]
[1735399809230,3.50358,3386.7,3386.6,41.09579]
[1735399810928,0.29578,3386.7,3386.6,41.09579]
[1735399814136,2.33198,3386.8,3386.7,0.29578]
[1735399814429,2.33198,3386.8,3386.6,40.8]
[1735399814430,2.0362,3386.8,3386.6,40.8]
[1735399814739,0.29578,3386.7,3386.6,41.09578]
[1735399816833,1.67644387,3386.7,3385.8,3.2078]
[1735399817032,0.29585,3385.9,3385.8,3.2078]
[1735399817237,0.29585,3385.9,3385.8,3.50366]
[1735399817734,0.29585,3385.9,3385.8,3.2078]
[1735399818834,0.29586,3385.8,3385.5,40.8]
[1735399819030,0.29586,3385.8,3385.6,0.29588]
[1735399821733,3.1073,3386.1,3385.5,40.8]
[1735399821937,3.1073,3386.1,3386.0,0.29585]
[1735399822533,3.1073,3386.1,3386.0,3.50365]
[1735399822930,3.45407455,3386.6,3386.0,3.2078]
[1735399823130,3.45407455,3386.6,3386.5,0.2958]
[1735399823432,3.45407455,3386.6,3386.5,3.5036]
[1735399823931,3.45407455,3387.1,3386.5,44.0078]
[1735399824142,3.45407455,3387.1,3387.0,0.29576]
[1735399825639,3.2078,3387.8,3387.7,0.2957]
[1735399825836,3.2078,3387.8,3387.6,0.2957]
[1735399826040,3.2078,3387.8,3387.0,3.9472]
[1735399826238,3.50349,3387.8,3387.6,0.2957]
[1735399826544,3.50349,3387.8,3387.7,0.2957]
[1735399826545,3.2078,3387.8,3387.7,0.2957]
[1735399827037,3.45407455,3387.9,3387.8,0.29569]
[1735399827241,2.1792,3388.0,3387.8,0.29569]
[1735399827441,2.47487,3388.0,3387.8,0.29569]
[1735399827640,6.66187455,3388.2,3387.4,3.2078]
[1735399827849,6.66187455,3388.2,3387.6,0.29571]
[1735399828441,6.66187455,3388.2,3388.1,0.29566]
[1735399828644,3.2078,3388.2,3388.1,0.29566]
[1735399829043,3.45407455,3388.4,3388.3,0.29564]
[1735399829940,2.42122,3388.6,3388.3,0.29564]
[1735399830141,2.42122,3388.6,3388.4,0.29563]
[1735399830541,2.42122,3388.6,3388.4,41.09563]
[1735399830739,2.42122,3388.6,3388.4,40.8]
[1735399831148,2.1256,3388.6,3388.3,0.29564]
[1735399831445,0.29563,3388.5,3388.3,0.29564]
[1735399831646,0.29563,3388.5,3388.3,41.09564]
[1735399831837,0.29563,3388.5,3388.3,40.8]
[1735399832041,0.29563,3388.5,3388.0,3.2078]
[1735399832547,0.29566,3388.1,3388.0,3.2078]
[1735399832744,4.88424387,3388.1,3387.1,11.23368301]
[1735399832945,4.88424387,3388.1,3387.4,0.29572]
[1735399832946,0.29571,3387.6,3387.4,0.29572]
[1735399833143,0.2957,3387.7,3387.4,0.29572]
[1735399833347,1.0075,3387.9,3387.1,8.94172698]
[1735399833646,1.0075,3387.9,3387.6,3.2078]
[1735399833848,1.0075,3387.9,3387.8,0.29569]
[1735399834047,1.0075,3387.9,3387.6,3.2078]
[1735399834250,1.30318,3387.9,3387.7,0.2957]
[1735399835148,1.0075,3387.9,3387.7,0.2957]
[1735399835450,3.50347,3388.1,3387.8,0.29569]
[1735399835942,1.0297,3388.4,3388.0,3.2078]
[1735399836145,1.0297,3388.4,3388.3,0.29564]
[1735399836343,4.56077455,3388.5,3388.4,0.29564]
[1735399836344,1.73608455,3388.5,3388.4,0.29564]
[1735399836541,1.21164433,3388.7,3388.6,0.29562]
[1735399836740,4.33e-06,3388.7,3388.6,1.97206387]
[1735399836949,4.53534789,3389.6,3388.6,8.52411095]
[1735399837143,4.53534789,3389.6,3389.5,0.29554]
[1735399838446,4.53534789,3389.6,3389.3,3.50335]
[1735399838748,4.53534789,3389.6,3388.5,0.97247278]
[1735399838749,0.29558,3389.1,3388.6,0.29561]
[1735399839051,0.29562,3388.7,3388.4,4.63072698]
[1735399839247,0.29559,3388.9,3388.4,4.92635698]
[1735399839452,0.2956,3388.8,3388.4,4.92635698]
[1735399839750,0.2956,3388.8,3388.5,0.29563]
[1735399840043,1.0613,3389.0,3388.9,0.29559]
[1735399840249,1.0613,3389.0,3388.4,4.63072698]
[1735399840250,1.0613,3389.0,3388.8,0.29559]
[1735399840649,1.35689,3389.0,3388.8,0.29559]
[1735399840846,0.2956,3388.9,3388.2,1.95112]
[1735399841149,1.0613,3389.0,3388.7,0.29561]
[1735399841351,1.35689,3389.0,3388.7,0.29561]
[1735399841549,1.0613,3389.0,3388.2,1.212]
[1735399841848,0.2956,3388.9,3388.6,0.29562]
[1735399842147,1.0613,3389.0,3388.3,40.8]
[1735399842346,1.0613,3389.0,3388.9,0.29559]
[1735399844653,2.73158863,3389.9,3388.6,3.2078]
[1735399844654,5.20059863,3389.9,3388.6,3.2078]
[1735399844847,1.0881,3389.4,3389.0,3.2078]
[1735399845052,1.38366,3389.4,3389.1,0.29557]
[1735399845244,1.38366,3389.4,3389.1,0.29558]
[1735399845444,1.38366,3389.4,3389.0,3.2078]
[1735399845651,1.0881,3389.4,3389.0,3.2078]
[1735399845850,1.0881,3389.4,3389.3,0.29556]
[1735399847046,1.0274,3389.8,3389.6,0.29552]
[1735399847355,1.0409,3389.7,3389.5,3.50333]
[1735399847551,1.0409,3389.7,3389.6,40.8]
[1735399847949,1.33642,3389.7,3389.6,40.8]
[1735399848250,1.33642,3389.7,3389.5,3.2078]
[1735399848546,1.33642,3389.7,3389.3,0.29555]
[1735399848547,0.29554,3389.6,3389.3,0.29555]
[1735399848751,0.29553,3389.6,3389.4,40.8]
[1735399848954,0.29553,3389.6,3389.4,41.09555]
[1735399849256,0.29553,3389.6,3389.1,3.2078]
[1735399849257,1.0409,3389.7,3389.1,3.2078]
[1735399849443,1.33643,3389.7,3389.4,0.29554]
[1735399849642,1.33643,3389.7,3389.5,0.29554]
[1735399850249,1.0409,3389.7,3389.1,3.2078]
[1735399850452,1.33643,3389.7,3389.5,0.29554]
[1735399850855,1.33642,3389.7,3389.6,40.8]
[1735399851446,1.33642,3389.7,3389.6,41.09553]
[1735399851857,1.33642,3389.7,3389.6,40.8]
[1735399852156,1.33642,3389.7,3389.6,0.29553]
[1735399852352,1.0409,3389.7,3389.6,0.29553]
[1735399853355,0.29555,3389.5,3389.4,0.29554]
[1735399853856,1.0409,3389.7,3389.3,40.8]
[1735399854057,0.29555,3389.5,3389.4,0.29554]
[1735399855057,0.29549,3390.1,3390.0,0.29549]
[1735399855252,1.35416,3390.4,3390.3,0.29547]
[1735399855559,1.0587,3390.4,3390.3,0.29547]
[1735399855759,1.35416,3390.4,3390.3,0.29547]
[1735399855959,1.0587,3390.4,3390.3,0.29547]
[1735399856759,1.35417,3390.4,3390.3,0.29547]
[1735399856961,0.29547,3390.3,3390.2,0.29547]
[1735399857152,1.35417,3390.4,3390.3,0.29547]
[1735399857557,1.0587,3390.4,3390.3,0.29547]
[1735399858357,1.35416,3390.4,3390.3,0.29547]
[1735399858559,1.0587,3390.4,3390.3,0.29547]
[1735399858763,1.35416,3390.4,3390.3,0.29547]
[1735399859059,1.0587,3390.4,3389.6,0.73881]
[1735399859259,0.29548,3390.2,3390.1,0.29548]
[1735399859461,0.29549,3390.1,3390.0,0.29549]
[1735399859655,1.0587,3390.4,3389.5,3.2078]
[1735399859857,3.2078,3390.2,3389.5,3.2078]
[1735399860164,0.73881,3389.7,3389.1,3.2078]
[1735399860364,3.1974,3389.6,3389.1,3.2078]
[1735399860565,0.29555,3389.5,3389.4,0.29554]
[1735399861155,3.1974,3389.6,3389.5,0.29554]
[1735399861861,0.29555,3389.5,3389.4,0.29554]
[1735399862264,3.1974,3389.6,3389.5,0.29554]
[1735399862664,3.49293,3389.6,3389.5,0.29554]
[1735399862967,3.49293,3389.6,3389.4,0.29554]
[1735399863160,3.49294,3389.6,3389.4,0.29554]
[1735399863561,0.29557,3389.2,3389.1,3.50337]
[1735399864068,0.29556,3389.3,3389.1,3.50337]
[1735399864669,0.29556,3389.3,3389.2,0.29557]
[1735399864861,0.29556,3389.3,3389.1,3.2078]
[1735399865057,0.29556,3389.3,3389.1,3.50337]
[1735399865571,0.29557,3389.2,3389.1,3.2078]
[1735399865863,3.93625,3389.6,3388.9,40.8]
[1735399865864,0.29558,3389.0,3388.9,40.8]
[1735399866161,3.2078,3389.1,3388.3,3.2078]
[1735399866361,1.66652072,3389.3,3388.0,1.66652072]
[1735399866362,0.29562,3388.6,3388.0,1.66652072]
[1735399866665,3.2078,3388.7,3388.1,40.8]
[1735399866961,1.129,3388.5,3388.1,40.8]
[1735399867164,0.29564,3388.4,3388.2,0.29565]
[1735399868065,1.129,3388.5,3388.1,40.8]
[1735399868066,0.29565,3388.2,3388.1,40.8]
[1735399868665,3.2078,3388.3,3387.5,3.2078]
[1735399868862,0.2957,3387.7,3387.5,3.2078]
[1735399869057,3.2078,3389.2,3387.6,1.59174876]
[1735399869266,0.7388,3389.8,3389.1,40.8]
[1735399869267,2.29886131,3389.3,3389.1,40.8]
[1735399869565,2.29886131,3389.3,3389.1,41.09557]
[1735399870263,2.29886131,3389.3,3389.1,40.8]
[1735399870471,2.59442131,3389.3,3389.1,41.09558]
[1735399870767,1.0551,3389.4,3389.1,40.8]
[1735399871170,0.29556,3389.3,3389.2,0.29556]
[1735399871367,0.29556,3389.3,3389.1,40.8]
[1735399871368,1.0551,3389.4,3389.1,40.8]
[1735399871570,0.29557,3389.2,3389.1,41.09557]
[1735399871771,0.29557,3389.2,3389.1,0.29557]
[1735399873464,1.1115,3389.3,3388.8,40.8]
[1735399873669,1.1115,3389.3,3389.1,0.29557]
[1735399873970,0.29557,3389.2,3389.1,0.29557]
[1735399874568,1.1115,3389.3,3388.8,40.8]
[1735399874773,0.29559,3389.0,3388.9,0.29559]
[1735399875070,0.29558,3389.1,3388.9,0.29559]
[1735399875378,0.29558,3389.1,3389.0,0.29558]
[1735399875673,0.29558,3389.1,3388.8,40.8]
[1735399875674,0.29558,3389.1,3388.9,0.29559]
[1735399875971,1.1115,3389.3,3388.9,0.29559]
[1735399876171,0.29558,3389.0,3388.9,0.29559]
[1735399876371,0.29559,3388.9,3388.8,40.8]
[1735399876574,6.1115,3389.3,3388.3,3.2078]
[1735399876869,0.29563,3388.5,3388.4,0.29563]
[1735399877069,3.2078,3389.0,3388.5,0.29562]
[1735399877271,1.079,3388.9,3388.5,0.29562]
[1735399877669,0.29562,3388.6,3388.5,0.29562]
[1735399879771,1.079,3388.9,3388.3,3.2078]
[1735399879772,0.29564,3388.5,3388.4,0.29563]
[1735399879971,0.00285572,3388.6,3388.3,3.2078]
[1735399880166,0.00285572,3388.6,3388.5,0.29563]
[1735399883077,0.29847572,3388.6,3388.5,0.29563]
[1735399885271,0.29564,3388.4,3388.3,3.2078]
[1735399885477,0.29564,3388.4,3388.3,3.50344]
[1735399887478,0.29567,3388.0,3387.9,3.50348]
[1735399887679,2.1418,3388.5,3387.6,4.90304705]
[1735399887680,0.2957,3387.7,3387.6,4.90304705]
[1735399887867,0.7392,3388.0,3387.6,40.8]
[1735399888071,1.7577,3388.0,3387.6,40.8]
[1735399888271,0.2957,3387.7,3387.6,41.0957]
[1735399888773,0.2957,3387.7,3387.6,40.8]
[1735399888976,0.29571,3387.6,3387.5,7.81514705]
[1735399889374,0.29571,3387.6,3387.5,4.60734705]
[1735399890180,0.29573,3387.4,3387.1,3.2078]
[1735399890373,0.29573,3387.4,3387.2,40.8]
[1735399890573,0.29573,3387.3,3387.2,40.8]
[1735399894283,0.29573,3387.4,3387.2,40.8]
[1735399894479,0.29572,3387.4,3387.3,1.66889087]
[1735399895080,0.29572,3387.4,3387.3,40.8]
[1735399895278,0.29578,3386.8,3386.7,3.2078]
[1735399895681,0.29578,3386.8,3386.7,44.0078]
[1735399898586,0.73933,3387.4,3386.9,0.29576]
[1735399898889,0.73933,3387.4,3386.8,0.29577]
[1735399898890,0.29577,3387.0,3386.8,0.29577]
[1735399899579,0.29577,3387.0,3386.7,44.0078]
[1735399899780,0.73933,3387.4,3386.8,0.29578]
[1735399899781,0.29577,3386.9,3386.8,0.29578]
[1735399899987,0.73933,3387.4,3386.7,44.0078]
[1735399900190,0.29577,3386.9,3386.7,44.30358]
[1735399901686,0.73933,3387.4,3386.7,44.0078]
[1735399901887,0.29578,3386.8,3386.7,44.0078]
[1735399902095,0.29581,3386.4,3386.3,3.2078]
[1735399902595,0.29581,3386.4,3386.3,44.0078]
[1735399909986,1.36351,3386.4,3386.3,40.8]
[1735399922693,0.29588,3385.6,3385.5,3.2078]
[1735399922991,0.73966,3385.9,3385.1,0.29592]
[1735399922992,0.29592,3385.2,3385.1,3.2078]
[1735399923597,0.29592,3385.2,3385.1,44.0078]
[1735399923799,0.29592,3385.2,3385.1,44.30372]
[1735399924398,0.29592,3385.2,3385.1,44.0078]
[1735399930609,0.29591,3385.3,3385.2,0.29591]
[1735399931197,0.29591,3385.3,3385.2,41.09591]
[1735399932300,0.29591,3385.3,3385.2,40.8]
[1735399933399,3.94742,3386.0,3385.2,45.8]
[1735399933600,0.29587,3385.8,3385.7,0.29587]
[1735399933797,0.29587,3385.8,3385.7,1.41017]
[1735399934101,1.79546,3386.3,3385.7,1.41017]
[1735399934102,0.29585,3386.1,3385.7,1.1143]
[1735399934305,0.29585,3386.1,3386.0,3.50365]
[1735399934494,0.29585,3386.1,3386.0,3.2078]
[1735399934892,0.29585,3386.1,3386.0,44.0078]
[1735399936397,0.29583,3386.3,3386.0,44.0078]
[1735399936598,0.29583,3386.3,3386.1,1.66889087]
[1735399936798,0.29583,3386.3,3386.1,1.96472087]
[1735399937198,0.73949,3386.6,3386.0,44.0078]
[1735399937403,0.29584,3386.1,3386.0,44.0078]
[1735399937605,0.29583,3386.2,3386.0,44.30365]
[1735399938903,1.0559,3386.7,3386.1,0.29583]
[1735399939104,0.29579,3386.6,3386.5,3.2078]
[1735399940301,1.66889087,3386.7,3386.1,3.2078]
[1735399940605,0.29583,3386.2,3386.1,3.2078]
[1735399942604,0.29586,3385.8,3385.7,40.8]
[1735399942807,0.29586,3385.8,3385.5,3.2078]
[1735399942808,0.29588,3385.6,3385.5,3.2078]
[1735399943403,0.73971,3385.6,3385.1,6.90220391]
[1735399943602,3.2078,3385.2,3385.1,6.90220391]
[1735399943803,3.50372,3385.2,3385.1,6.90220391]
[1735399943999,3.50372,3385.2,3385.1,40.8]
[1735399944205,0.29598,3384.5,3384.4,3.2078]
[1735399945007,0.29598,3384.5,3384.4,44.0078]
[1735399945909,0.73988,3384.9,3384.4,44.0078]
[1735399945910,0.29594,3384.9,3384.4,44.0078]
[1735399946212,2.32130526,3385.0,3384.9,0.29594]
[1735399946516,2.32130526,3385.0,3384.8,3.2078]
[1735399946810,0.29594,3384.9,3384.8,3.2078]
[1735399947211,1.0625,3384.9,3384.5,1.0618]
[1735399947409,0.29598,3384.5,3384.4,3.2078]
[1735399948617,0.29603,3383.9,3383.8,6.9270586]
[1735399949112,0.29603,3383.9,3383.8,40.8]
[1735399954813,3.2078,3384.0,3383.2,3.2078]
[1735399955019,3.2078,3383.3,3382.6,3.2078]
[1735399955216,0.29613,3382.7,3382.6,3.2078]
[1735399955921,0.29613,3382.7,3382.6,44.0078]
[1735399960221,0.29613,3382.7,3382.6,40.8]
[1735399962221,0.2962,3381.9,3381.8,3.2078]
[1735399962727,0.29625,3381.4,3381.3,3.50405]
[1735399962926,0.29625,3381.4,3381.3,3.2078]
[1735399963124,1.1153,3381.8,3381.3,44.30406]
[1735399963320,1.41151,3381.8,3381.7,3.2078]
[1735399964621,0.29621,3381.8,3381.7,3.2078]
[1735399965529,0.29621,3381.8,3381.7,44.0078]
[1735399965716,1.66889087,3382.0,3381.3,3.2078]
[1735399966027,0.29625,3381.4,3381.3,3.2078]
[1735399966325,0.29625,3381.4,3381.3,44.0078]
[1735399966824,0.29625,3381.4,3381.3,40.8]
[1735399967427,5.3101,3381.6,3380.8,3.2078]
[1735399967622,0.29632,3380.6,3380.5,1.0139]
[1735399968727,0.29634,3380.4,3380.3,3.2078]
[1735399969230,0.29634,3380.4,3380.3,44.0078]
[1735399971425,0.29633,3380.5,3380.3,44.30414]
[1735399971625,0.29634,3380.4,3380.3,44.0078]
[1735399972229,0.29633,3380.5,3380.3,44.30414]
[1735399972619,0.29634,3380.4,3380.3,44.0078]
[1735399973221,0.29634,3380.4,3380.3,44.3783559]
[1735399974736,0.29634,3380.4,3380.3,44.74891962]
[1735399975127,0.29634,3380.4,3380.3,44.74892074]
[1735399976525,0.29634,3380.4,3380.3,44.3783559]
[1735399977628,0.29634,3380.4,3380.3,44.74893344]
[1735399978022,0.29634,3380.4,3380.3,44.3783559]
[1735399978221,0.29634,3380.4,3380.3,44.37838419]
[1735399978624,0.29634,3380.4,3380.3,3.2078]
[1735399978821,0.29634,3380.4,3380.3,3.57840476]
[1735399979333,0.29634,3380.4,3380.3,44.37840476]
[1735399981030,0.29634,3380.4,3380.3,44.37839074]
[1735399981835,0.29634,3380.4,3380.3,44.0078]
[1735399987839,0.29634,3380.4,3380.3,40.8]
[1735399991243,0.29634,3380.4,3380.3,41.09634]
[1735399991438,0.29633,3380.6,3380.5,0.29632]
[1735399991640,0.29633,3380.5,3380.4,1.1232]
[1735399991840,0.29634,3380.4,3380.3,40.8]
[1735399998648,1.66889087,3380.5,3379.5,3.2078]
[1735399998847,0.29641,3379.7,3379.6,1.76392889]
[1735399999050,0.29641,3379.7,3379.6,1.76393005]
[1735399999241,0.29641,3379.7,3379.6,42.56393005]
[1735399999447,0.29641,3379.7,3379.6,42.26753005]
[1735400001451,0.29641,3379.7,3379.6,42.56394005]
[1735400001953,0.29641,3379.7,3379.6,41.17062697]
[1735400002344,0.29641,3379.7,3379.6,40.8]
[1735400010764,0.29641,3379.7,3379.6,41.09641]
[1735400011362,0.29641,3379.7,3379.6,40.8]
[1735400014456,2.29009923,3379.8,3379.6,40.8]
[1735400014659,2.29009923,3379.8,3379.7,1.4136]
[1735400014962,3.43514885,3380.0,3379.9,0.29638]
[1735400015163,3.43514885,3380.0,3379.9,3.50418]
[1735400016464,0.29636,3380.2,3380.1,0.29636]
[1735400016862,4.51814885,3380.6,3379.9,3.2078]
[1735400017064,0.29634,3380.4,3380.3,3.2078]
[1735400019563,0.29634,3380.4,3379.9,3.2078]
[1735400019564,1.0958,3380.4,3379.9,3.2078]
[1735400019868,1.0958,3380.4,3379.5,6.84646974]
[1735400019869,0.29641,3379.6,3379.5,6.84646974]
[1735400020058,0.29641,3379.6,3379.5,7.94616974]
[1735400020868,0.29641,3379.6,3379.5,1.0997]
[1735400021360,0.29641,3379.6,3379.5,41.8997]
[1735400022067,0.29641,3379.6,3379.5,40.8]
[1735400026368,1.37831,3379.6,3379.5,40.8]
[1735400026567,1.37622312,3379.6,3379.5,40.8]
[1735400027468,5.2562232,3379.6,3379.5,40.8]
[1735400030985,0.29643,3379.3,3379.2,3.2078]
[1735400031371,0.29643,3379.3,3379.2,44.0078]
[1735400034877,0.29643,3379.3,3379.2,40.8]
[1735400035679,0.29643,3379.4,3379.3,0.29643]
[1735400036977,0.29643,3379.3,3379.2,44.30424]
[1735400037779,0.29643,3379.3,3379.2,44.0078]
[1735400040974,0.29643,3379.3,3379.2,3.2078]
[1735400043978,3.2078,3379.5,3379.0,40.8]
[1735400044181,0.29645,3379.1,3379.0,40.8]
[1735400045066,0.29645,3379.1,3379.0,41.09646]
[1735400045575,3.43514885,3379.4,3379.0,40.8]
[1735400045768,3.73157885,3379.4,3379.3,0.29643]
[1735400046478,0.29644,3379.3,3379.2,0.29643]
[1735400047471,0.74106,3379.5,3379.0,40.8]
[1735400047671,0.29645,3379.1,3379.0,40.8]
[1735400048673,0.29645,3379.1,3379.0,41.09646]
[1735400049172,0.29645,3379.1,3379.0,40.8]
[1735400050773,0.29645,3379.1,3379.0,41.46716715]
[1735400051373,0.29645,3379.1,3379.0,41.17070715]
[1735400051676,0.29645,3379.1,3379.0,41.46716715]
[1735400051980,6.36743847,3379.6,3379.1,0.74113]
[1735400051981,4.48134885,3379.6,3379.1,0.74113]
[1735400052181,0.29641,3379.5,3379.4,3.50422]
[1735400052380,4.48134885,3379.6,3379.4,3.2078]
[1735400052581,3.43514885,3379.6,3379.5,0.66705993]
[1735400053374,0.29639,3379.9,3379.8,0.29638]
[1735400053573,3.73151885,3380.0,3379.9,0.29638]
[1735400053778,0.29638,3379.9,3379.8,3.2078]
[1735400054180,0.29638,3379.9,3379.8,44.0078]
[1735400054583,0.29641,3379.5,3379.4,3.2078]
[1735400054976,0.29641,3379.5,3379.4,44.0078]
[1735400055184,0.29641,3379.5,3379.4,3.2078]
[1735400055383,0.29642,3379.4,3379.3,6.84646974]
[1735400055583,1.41762,3379.4,3379.3,6.84646974]
[1735400056284,0.29645,3379.1,3379.0,3.2078]
[1735400057980,4.55634885,3379.4,3379.0,3.2078]
[1735400058175,0.29644,3379.2,3379.1,0.29645]
[1735400058378,3.43514885,3379.4,3379.0,3.2078]
[1735400058576,3.43514885,3379.4,3379.3,0.29643]
[1735400058577,3.73157885,3379.4,3379.3,0.29643]
[1735400059182,0.29643,3379.4,3379.3,0.29643]
[1735400059371,3.43514885,3379.7,3379.0,3.2078]
[1735400059372,0.29645,3379.1,3379.0,3.2078]
[1735400066380,3.43514885,3379.2,3379.0,3.2078]
[1735400066583,3.73159885,3379.1,3379.0,3.50425]
[1735400066986,3.43514885,3379.1,3379.0,3.50425]
[1735400067181,3.43514885,3379.1,3379.0,4.96762973]
[1735400067591,1.73674885,3379.1,3379.0,4.96762973]
[1735400067888,4.58019847,3379.5,3379.4,0.29642]
[1735400068590,4.58019847,3379.5,3379.4,3.50422]
[1735400068800,4.58019847,3379.5,3379.4,3.2078]
[1735400068801,4.87660847,3379.5,3379.4,3.2078]
[1735400069288,4.87660847,3379.5,3379.4,3.50422]
[1735400069487,0.29641,3379.5,3379.4,8.14370212]
[1735400069681,5.64269847,3379.9,3379.4,7.84728212]
[1735400069989,5.64269847,3379.9,3379.8,0.29639]
[1735400069990,5.93908847,3379.9,3379.8,0.29639]
[1735400070394,4.87658847,3379.9,3379.8,41.09639]
[1735400071290,0.29639,3379.9,3379.8,41.09639]
[1735400071489,0.29639,3379.9,3379.8,40.8]
[1735400071695,0.29637,3380.0,3379.9,0.29637]
[1735400071992,0.29638,3379.9,3379.8,44.0078]
[1735400073492,0.29638,3379.9,3379.8,40.8]
[1735400073691,0.4447458,3379.9,3379.8,40.8]
[1735400073882,0.4447458,3379.9,3379.8,41.09639]
[1735400074888,0.29638,3380.0,3379.8,40.8]
[1735400075088,0.29638,3380.0,3379.9,0.29638]
[1735400078393,1.055,3380.1,3379.8,40.8]
[1735400078599,1.055,3380.1,3379.8,41.09638]
[1735400078600,0.29638,3379.9,3379.8,41.09638]
[1735400082794,0.29638,3379.9,3379.8,40.8]
[1735400082991,0.29641,3379.6,3379.5,7.84728212]
[1735400083392,0.29641,3379.6,3379.5,48.64728212]
[1735400083594,0.29641,3379.6,3379.5,48.94369212]
[1735400084793,0.29641,3379.6,3379.5,44.30421]
[1735400086399,1.4014,3379.7,3379.6,0.29641]
[1735400086603,1.105,3379.7,3379.6,0.29641]
[1735400086997,1.4014,3379.7,3379.6,0.29641]
[1735400089602,1.105,3379.7,3379.6,0.29641]
[1735400089907,1.4014,3379.7,3379.6,0.29641]
[1735400094120,1.4014,3379.7,3379.6,3.50421]
[1735400098717,1.4014,3379.7,3379.6,3.2078]
[1735400099716,1.105,3379.7,3379.5,40.8]
[1735400099912,0.29641,3379.6,3379.5,40.8]
[1735400100723,0.29641,3379.6,3379.5,41.09641]
[1735400102423,0.29641,3379.6,3379.5,40.8]
[1735400103423,0.29641,3379.6,3379.5,41.09641]
[1735400103621,0.74124208,3379.6,3379.5,41.09641]
[1735400103823,0.74124208,3379.6,3379.5,40.8]
[1735400104018,0.74124208,3379.6,3379.2,3.2078]
[1735400104225,0.29643,3379.3,3379.2,3.2078]
[1735400105226,4.87669087,3379.4,3378.9,4.63948212]
[1735400105524,0.29646,3379.0,3378.9,4.63948212]
[1735400106518,2.2028,3379.2,3378.9,4.63948212]
[1735400106720,1.88975208,3379.5,3379.4,0.29642]
[1735400106929,1.44492,3379.5,3379.4,0.29642]
[1735400107428,1.44492,3379.5,3379.4,41.09642]
[1735400107927,1.1485,3379.5,3379.4,41.09642]
[1735400108127,6.87029771,3379.8,3379.4,40.8]
[1735400108318,4.65840735,3379.8,3379.7,0.2964]
[1735400109628,1.1187,3380.2,3380.1,0.29636]
[1735400109835,1.1187,3380.2,3379.7,4.63948212]
[1735400110128,0.29639,3379.8,3379.7,4.93587212]
[1735400110320,0.29639,3379.8,3379.7,45.43948212]
[1735400110524,0.29639,3379.8,3379.7,4.93588212]
[1735400110719,0.29639,3379.8,3379.7,4.63948212]
[1735400110921,0.29639,3379.8,3379.7,4.93588212]
[1735400111121,1.1187,3380.2,3379.7,4.63948212]
[1735400111422,8.96210735,3380.4,3380.3,0.29634]
[1735400111618,5.75430735,3380.4,3380.3,3.50414]
[1735400111826,5.75430735,3380.4,3380.3,44.30414]
[1735400112332,4.65840735,3380.4,3380.3,44.30414]
[1735400112631,2.40811,3380.8,3380.6,0.29632]
[1735400112632,6.08161735,3380.7,3380.6,0.29632]
[1735400112833,0.29634,3380.4,3380.3,44.0078]
[1735400113421,5.78530735,3380.7,3380.3,3.2078]
[1735400113624,4.65840735,3380.7,3380.6,0.29632]
[1735400113932,5.71350735,3380.8,3380.7,0.29631]
[1735400114131,5.71350735,3380.8,3380.6,40.8]
[1735400114627,5.71350735,3380.8,3380.7,3.50411]
[1735400115334,1.0551,3380.8,3380.7,3.50411]
[1735400116232,1.1269,3381.0,3380.9,0.29629]
[1735400116428,4.65840735,3381.3,3380.7,4.1322]